Cogmind - Beta 13 @@@ ROGUE MODE // 2024.04.02 @ 01:39:22 Player: ivanmixo Result: Smashed by cave-in Performance ------------- Evolutions (0) 0 Regions Visited (2) 400 Robots Destroyed (27) 135 Value Destroyed (523) 523 Prototype IDs (0) 0 Alien Tech Used (0) 0 Bonus (0) 0 TOTAL SCORE: 1058 Bonus ------- None Cogmind --------- Core Integrity 0/250 Matter 290/300 Energy 160/160 System Corruption 4% Temperature Warm (112) Movement Rolling (200) Ox8 Location -10/Mines Parts ------- > --- POWER (1) -------- Light Nuclear Core > --- PROPULSION (2) --- Wheel > --- UTILITY (2) ------ Huge Storage Unit Targeting Computer > --- WEAPON (2) ------- Light Cannon > --- INVENTORY (25) --- Flight Unit Flight Unit Small Storage Unit Medium Laser Backup Laser I Beam Cannon Light Assault Rifle Peak State ------------ > --- POWER ------------ Light Ion Engine > --- PROPULSION ------- Wheel Wheel > --- UTILITY ---------- Visual Processing Unit Improved Terrain Scanner > --- WEAPON ----------- Light Cannon Light Cannon > --- INVENTORY -------- Small Storage Unit Medium Laser Light Assault Rifle Mining Laser [Rating: 10] Favorites ----------- Power Light Ion Engine Engine Light Ion Engine Power Core Light Nuclear Core Propulsion Wheel Wheel Wheel Flight Unit Flight Unit Utility Huge Storage Unit Device Improved Terrain Scanner Storage Huge Storage Unit Processor Targeting Computer Weapon Light Cannon Energy Gun Medium Laser Energy Cannon Beam Cannon Ballistic Gun Light Assault Rifle Ballistic Cannon Light Cannon Special Weapon Mining Laser Build | -11 -10 -10 ------- Run | Yrd Mat Min Slots Evolved . | . . . Power . | . . . Propulsion . | . . . Utility . | . . . Weapon . | . . . Parts Attached 27 | 6 19 2 Power 4 | 1 2 1 Engine 3 | 1 2 . Core 1 | . . 1 Reactor . | . . . Propulsion 8 | 2 6 . Treads . | . . . Leg . | . . . Wheel 5 | 2 3 . Hover . | . . . Flight 3 | . 3 . Utility 6 | 1 5 . Device 2 | 1 1 . Storage 2 | . 2 . Processor 2 | . 2 . Hackware . | . . . Protection . | . . . Artifact . | . . . Weapon 9 | 2 6 1 Energy Gun 2 | 1 1 . Energy Cannon 1 | . 1 . Ballistic Gun 1 | 1 . . Ballistic Cannon 4 | . 4 . Launcher . | . . . Special Weapon 1 | . . 1 Impact Weapon . | . . . Slashing Weapon . | . . . Piercing Weapon . | . . . Special Melee Weapon . | . . . Unidentified Prototypes . | . . . Parts Lost 4 | . 2 2 Power 1 | . 1 . Propulsion 1 | . . 1 Utility 1 | . 1 . Weapon 1 | . . 1 Highest Loss Streak 2 | . 1 2 To Critical Strikes . | . . . Average Slot Usage (%) 92 | . 90 100 Engine 13 | . 13 12 Wheel 25 | . 25 28 Device 2 | . 3 . Storage 11 | . 11 14 Processor 8 | . 7 14 Energy Gun 1 | . 2 . Energy Cannon 9 | . 9 12 Ballistic Cannon 15 | . 15 14 Naked Turns . | . . . Heaviest Build 91 | 7 91 91 Greatest Support 20 | 20 20 20 Greatest Overweight (x) 29 | . 29 4 Average Overweight (x) 2 | . 3 4 Largest Inventory Capacity 25 | 5 25 25 Average Capacity 18 | 5 20 25 Most Carried 8 | 3 8 8 Average Carried 4 | . 4 7 Final Capacity 25 | 5 25 25 Final Carried 7 | 2 7 7 Class Distribution -------------------- 100% | Mutant Dominant Class ---------------- Mutant | -10/Materials Mutant | -10/Mines Resources | -11 -10 -10 ----------- Run | Yrd Mat Min Matter Collected 737 | 267 436 34 Remotely . | . . . Salvage Created 652 | 128 371 153 Parts 48 | 15 27 6 Haulers Intercepted . | . . . Recyclers Shooed 1 | . 1 . Parts Field Recycled . | . . . Retrieved Matter . | . . . Parts Self-Destructed . | . . . Prevented . | . . . Kills | -11 -10 -10 ------- Run | Yrd Mat Min Combat Hostiles Destroyed 13 | 1 8 4 Guns 1 | 1 . . Cannons 11 | . 8 3 AOE 1 | . . 1 Classes Destroyed 7 | 3 4 . Worker 4 | 1 2 1 Builder 2 | . 2 . Tunneler 5 | 4 1 . Recycler 1 | . 1 . Watcher 2 | . 2 . Swarmer 3 | . 3 . Grunt 10 | 1 5 4 Best Kill Streak 4 | 4 4 3 Combat Bots Only 3 | 1 3 2 Max Kills in Single Turn 2 | 1 1 2 Gunslinging . | . . . Exploded 1 | . . 1 Melee . | . . . Uniques/NPCs Destroyed . | . . . Combat | -11 -10 -10 -------- Run | Yrd Mat Min Hostile Shots Fired 69 | 4 56 9 Missed 25 | . 21 4 Damage Taken 770 | 42 400 328 Core 323 | . 171 152 Absorbed by Shields . | . . . Regen/Repaired (Parts) 73 | . 73 . Core Remaining (%) 100 | 100 . . Volleys Fired 67 | 17 40 10 Largest 2 | 2 2 2 Hottest 100 | 70 95 100 Shots Fired 130 | 34 80 16 Gun 37 | 34 3 . Cannon 89 | . 77 12 Launcher . | . . . Special 4 | . . 4 Kinetic 87 | 17 64 6 Thermal 43 | 17 16 10 Explosive . | . . . Electromagnetic . | . . . Robot Hit Streak 7 | 6 6 7 Robot Miss Streak 5 | 5 5 1 Penetration Max . | . . . Secondary Targets . | . . . Shots Hit Robots 63 | 19 36 8 Core Hits 32 | 8 17 7 Critical Kills . | . . . Critical Parts Destroyed 1 | 1 . . Critical Strikes 4 | 1 3 . Destroy 1 | 1 . . Blast 3 | . 3 . Melee Attacks . | . . . Impact . | . . . Slashing . | . . . Piercing . | . . . Sneak Attacks . | . . . Combat Hostiles . | . . . Follow-up Attacks . | . . . Damage Inflicted 1154 | 201 649 304 Guns 201 | 201 . . Cannons 786 | . 649 137 Explosions 167 | . . 167 Melee . | . . . Ramming . | . . . Kinetic 592 | 51 492 49 Thermal 562 | 150 157 255 Explosive . | . . . Electromagnetic . | . . . Impact . | . . . Slashing . | . . . Piercing . | . . . Highest Corruption . | . . . Average Corruption . | . . . Corruption Purged . | . . . Corruption Blocked . | . . . Overload Shots . | . . . Overflow Damage . | . . . Projectiles . | . . . Explosions . | . . . Melee . | . . . Knockbacks 8 | . 6 2 Impact . | . . . Kinetic 7 | . 5 2 Secondary 1 | . 1 . Self-Inflicted Damage 43 | . . 43 Shots 1 | . . 1 Rammed . | . . . Targets Rammed . | . . . Kicked . | . . . Crushed . | . . . Highest Temperature 144 | 144 125 117 Average Temperature 44 | 58 35 58 Received Heat Transfer 123 | 24 54 45 Siege Activations . | . . . Robots Corrupted . | . . . Combat Hostiles . | . . . Parts Fried . | . . . Impact Corruptions . | . . . Robots Melted . | . . . Combat Hostiles . | . . . Parts Melted 4 | 2 1 1 Heat Transferred 1162 | 444 333 385 Parts Sabotaged . | . . . Parts Stolen . | . . . Parts Stripped . | . . . Power Chain Reactions . | . . . Alert | -11 -10 -10 ------- Run | Yrd Mat Min Peak Influence 293 | 45 293 203 Initial 51 | . 29 51 Average 122 | 15 153 114 Maximum Alert Level 1 | . 1 1 Low Security (%) 72 | 100 64 75 Level 1 27 | . 35 24 Level 2 . | . . . Level 3 . | . . . Level 4 . | . . . Level 5 . | . . . High Security . | . . . Max Security . | . . . Squads Dispatched 2 | . 2 . Investigation 1 | . 1 . Extermination . | . . . Reinforcement 1 | . 1 . Assault . | . . . Garrison . | . . . Intercept . | . . . Searches Triggered . | . . . Construction Impeded . | . . . Haulers Reinforced . | . . . Active Scanning Responses . | . . . Cargo Convoy Interrupts . | . . . Stealth | -11 -10 -10 --------- Run | Yrd Mat Min Distress Signals . | . . . Communications Jammed . | . . . Distress Signals . | . . . Times Spotted 20 | 1 15 4 Peak Tracking Total 4 | 1 4 2 Tactical Retreats . | . . . Traps | -11 -10 -10 ------- Run | Yrd Mat Min Traps Triggered 3 | . 3 . Indirectly . | . . . Trap Hack Attempts . | . . . Triggered . | . . . Disarmed . | . . . Reprogrammed . | . . . Reused . | . . . Traps Extracted . | . . . Installed . | . . . Triggered . | . . . Machines | -11 -10 -10 ---------- Run | Yrd Mat Min Machines Disabled 4 | . 2 2 Max in Single Turn 2 | . 1 2 Machines Repaired . | . . . Machines Dismantled . | . . . Machines Sabotaged . | . . . Overloaded Fab Kills . | . . . Hacking | -11 -10 -10 --------- Run | Yrd Mat Min Machines Accessed 1 | . 1 . Terminals . | . . . Fabricators . | . . . Repair Stations 1 | . 1 . Recycling Units . | . . . Scanalyzers . | . . . Garrison Access . | . . . Total Hacks 5 | . 5 . Successful 3 | . 3 . Failed 2 | . 2 . Catastrophic . | . . . Database Lockouts . | . . . Manual . | . . . Terminals . | . . . Fabricators . | . . . Repair Stations 5 | . 5 . Recycling Units . | . . . Scanalyzers . | . . . Garrison Access . | . . . Terminal Hacks . | . . . Fabricator Hacks . | . . . Repair Station Hacks 3 | . 3 . Scan Component 1 | . 1 . Repair 1 | . 1 . Refit 1 | . 1 . Recycling Unit Hacks . | . . . Scanalyzer . | . . . Garrison Access Hacks . | . . . Unauthorized Hacks . | . . . Terminals . | . . . Fabricators . | . . . Repair Stations . | . . . Recycling Units . | . . . Scanalyzers . | . . . Garrison Access . | . . . Data Cores Recovered . | . . . Used . | . . . Hacking Detections . | . . . Full Trace Events . | . . . Feedback Events . | . . . Feedback Blocked . | . . . Robot Schematics Acquired . | . . . Robots Built . | . . . Authchips . | . . . Time . | . . . Total Robot Build Rating . | . . . Part Schematics Acquired . | . . . Parts Built . | . . . Authchips . | . . . Time . | . . . Total Part Build Rating . | . . . Parts Repaired 1 | . 1 . Time 26 | . 26 . Parts Recycled . | . . . Recycled Matter . | . . . Retrieved Matter . | . . . Retrieved Components . | . . . Parts Scanalyzed . | . . . Part Schematics Acquired . | . . . Parts Damaged . | . . . Bothacking | -11 -10 -10 ------------ Run | Yrd Mat Min Used RIF Installer . | . . . Robots Hacked . | . . . Non-combat . | . . . Combat . | . . . Robot Hacks Applied . | . . . Relay Couplers Released . | . . . Fabnet Peak Effective % . | . . . Robots Rewired . | . . . Allies Hacked . | . . . Hacks Repelled . | . . . Allies | -11 -10 -10 -------- Run | Yrd Mat Min Total Allies . | . . . Largest Group . | . . . Highest-Rated Group . | . . . Highest-Rated Ally . | . . . Total Orders . | . . . Ally Attacks . | . . . Total Damage . | . . . Kills . | . . . Allies Corrupted . | . . . Allies Melted . | . . . Intel | -11 -10 -10 ------- Run | Yrd Mat Min Robot Analysis Total . | . . . Derelict Logs Recovered . | . . . Drone Launches . | . . . Drone Recoveries . | . . . Exploration | -11 -10 -10 ------------- Run | Yrd Mat Min Turns Passed 1087 | 193 703 191 Spaces Moved 551 | 105 348 98 Core 25 | 21 4 . Treads . | . . . Legs . | . . . Wheels 526 | 84 344 98 Hover . | . . . Flight . | . . . Fastest Speed 50 | 50 80 140 Average Speed 127 | 74 139 140 Slowest Speed 1500 | 80 1500 140 Overloaded Moves . | . . . Propulsion Burnouts . | . . . Robots Hopped . | . . . Cave-ins Triggered 1 | . . 1 Exploration Rate (%) 23 | 5 45 21 Regions Visited 2 Branch Regions 1 Pre-discovered Areas . | . . . Known Exits Taken . | . . . Unknown Exits Taken 2 | 1 1 . Scrap Searched 1 | . . 1 Spaces Dug 1 | . . 1 Terrain Destroyed 23 | . . 23 Melee . | . . . Projectile 4 | . . 4 AOE 19 | . . 19 Terrain Rammed . | . . . Walls Destroyed . | . . . Machines Disabled . | . . . Actions | -11 -10 -10 --------- Run | Yrd Mat Min Total 816 | 189 497 130 Wait 119 | 54 49 16 Move 549 | 104 347 98 Hop . | . . . Pick Up 27 | 8 18 1 Fast Attach . | . . . Attach 27 | 6 19 2 Detach 17 | . 15 2 Swap . | . . . Drop 10 | . 9 1 Fire 67 | 17 40 10 Melee . | . . . Ram . | . . . Kick . | . . . Crush . | . . . Escape Stasis . | . . . Rewire . | . . . Trap . | . . . Miscellaneous . | . . . Route ------- -11/Scrapyard -10/Materials (discovered 2 exits: [*Mat] / [*Min]) -10/Mines (discovered 2 exits: [*Mat x2]) History --------- Turn | Location | Event 2 | -11/Scrapyard | Met Revision 17 108 | -11/Scrapyard | Discovered new exit (range 8) 194 | -11/Scrapyard | Entered Materials 264 | -10/Materials | Discovered new exit (range 16) 305 | -10/Materials | Build established: Mutant 443 | -10/Materials | Discovered new exit (range 7) 485 | -10/Materials | Core integrity fell below 50% 819 | -10/Materials | Repaired Lgt. Cannon? 897 | -10/Materials | Entered Mines 925 | -10/Mines | Discovered new exit (range 6) 951 | -10/Mines | Core integrity fell below 20% 975 | -10/Mines | Discovered new exit (range 7) 1089 | -10/Mines | Crushed by falling debris 1089 | -10/Mines | Smashed by cave-in Last Messages --------------- G-47 Trooper knocked back. G-34 Mercenary destroyed. Destroyed Lgt. Ion Engine. Plasma Injector explodes. Med. Matter Pod melted. K-01 Serf destroyed. G-47 Trooper destroyed. Acquired 3 matter. Acquired 9 matter. Acquired Lgt. Nuclear Core. Dropped Ion Engine. R-06 Scavenger collects Wheel. The unstable cave ceiling collapses. Crushed by falling debris. [Achievement: Unlikely Earthworm] Mining Laser destroyed. System corrupted by crushing effect (+3). Wheel destroyed. System corrupted by crushing effect (+1). [Achievement: First Step to Greatness] Map ----- +----------------------------------------------------+ | | | | | | | | | | | | | | | | | | | | | | | | | | | | | | | | | | | | | ?????????????????????????????????????????????????? | | ?????????????????#########???????????????????????? | | ?????????????????# #??????????????????????## | | ?????????????????# #?????????????????##### | | ?????????????????# ##???????????????## | | ?????????????????# ;##??????????????# | | ?????????????????# * ; ###?????#####??# "" | | ????????????????## % @ #?????# ###?# "" | | ????????????????#; ;####?????# ### "" | | ????????????????#; r % ;#????????# < | | ????????????????#; ;#????????# | | ????????????????#; ##?????#### ## ### | | ????????????????#; #?????? ## ######?# ## | | ????????????????#;;; ;;;##??????# ## #??????# #?# | | ????????????????## # ## #???????# ## #??????# #?? | | ?????????????????### ####???##### ## #????### ### | | ???????????????????# !%[#???# ###### | | ???????????????????####!#???# ######### < | | ??????????????????????# #???# #??# ### | | ?????????????????###### ##### #??# ????# | | ?????????????????# #??# ???????# | | ???????????# ###########????????????######% | | ????????????????????????????????????????????????# | | ????????????????????????????????????????????????# | | ????????????????????????????????????????????????# | | ????????????????????????????????????????????????# | | ????????????????????????????????????????????????# | | ????????????????????????????????????????????????# | | ????????????????????????????????????????????????# | | ????????????????????????????????????????????????# | | ????????????????????????????????????????????????# | | ????????????????????????????????????????????????## | +----------------------------------------------------+ Best States ------------- Heat Dissipation 25 Energy Generation 14 Energy Capacity 250 Matter Stores 300 Matter Capacity 300 Sight Range 18 Robot Scan Range 14 Terrain Scan Range 16 Terrain Scan Density 10 Evasion (%) 50 Targeting Accuracy 5 Item Schematics ----------------- None Robot Schematics ------------------ None Fabricated ------------ Nothing Alien Tech Used ----------------- None Achievements -------------- First Step to Greatness Part-time Mechanic Storm Trooper Uninvited Guest Unlikely Earthworm Challenges ------------ None Game ------ Seed RocketLinkedComputer Manual? 0 Play Time 00:33:47 Cumulative 0.5 hours Start 2024.04.02 @ 01:03:32 End 2024.04.02 @ 01:39:22 Sessions 1 Manual Loads 0 Difficulty Rogue Special Mode None Game No. 1 Rogue 1 Adventurer 0 Explorer 0 Win Type - Total 0 Types 0/0/0/0/0/0/0/0/0 Lore% 0 Gallery% 1 Achievement% 1 Wizard Run 0 Options --------- Layout 1 ASCII 0 Keyboard 0 Movement Mouse Keybinds 0 Fullscreen 2 Font 24/Smallcaps Map View 50x35 Zoom Use 11% Tactical HUD 0 Map Filters NONE Filters NONE Steam 1 RUN: 09b9ee91-fb0c-4b32-a2a3-0466a21da43d